[Event "Romanian Rapid Open 2022"]
[Site "Sebes"]
[Date "2022.12.02"]
[Round "5.9"]
[White "Stefan, Romulus-Cristian"]
[Black "Bulmaga, Irina"]
[Result "1/2-1/2"]
[ECO "A46"]
[WhiteElo "2097"]
[BlackElo "2426"]
[Annotator "TA"]
[PlyCount "93"]
[EventDate "2022.12.02"]
[EventType "rapid"]
[EventCountry "ROU"]
[SourceTitle "playchess.com"]
[Source "ChessBase"]
[SourceQuality "1"]
[TimeControl "600+5"]

{[%evp 9,93,-5,4,10,22,19,34,1,38,16,37,12,28,10,0,-42,33,42,76,6,54,32,38,1,44,0,0,0,0,1,0,0,29,24,74,67,83,95,135,82,183,178,227,0,0,0,151,102,110,112,168,158,674,115,114,104,175,199,344,231,218,224,270,284,323,332,301,136,121,143,127,111,123,0,126,0,106,0,138,0,142,137,111,0,161,0]} 1. d4 {[%emt 0:00:02]} Nf6 {[%emt 0:00:02]} 2. Nf3 {[%emt 0:00:05]} e6 {[%emt 0:00:02]} 3. Bg5 {[%emt 0:00:03]} c5 {[%emt 0:00:04]} 4. e3 {[%emt 0:00:38]} h6 {[%emt 0:00:03]} 5. Bh4 {[%emt 0:00:02]} Nc6 {[%emt 0:00:07]} 6. Nbd2 {[%emt 0:00:38] A46: 1 d4 Nf6 2 Nf3 e6: Torre, London and Colle Systems.} b6 {[%emt 0:00:48]} 7. c3 {[%emt 0:00:04]} Bb7 {[%emt 0:00:03]} 8. Bd3 {[%emt 0:00:02] White is slightly better.} d6 {[%emt 0:00:07]} 9. O-O {[%emt 0:00:05]} g5 {[%emt 0:00:15]} 10. Bg3 {[%emt 0:00:02] [#]} Nh5 $146 {[%emt 0:00:05]} ({Predecessor:} 10... g4 11. Ne1 h5 12. Bh4 Be7 13. f3 cxd4 14. exd4 Nd5 15. Bf2 Rg8 16. fxg4 hxg4 {1-0 (75) Almeida Saenz,A (2259)-Adewumi,T (2188) Charlotte 2022}) 11. Nc4 {[%emt 0:00:10]} Nxg3 {[%emt 0:00:09]} 12. hxg3 {[%emt 0:00:02]} cxd4 {[%emt 0:00:32]} (12... g4 $15 13. Nh4 h5) 13. exd4 $14 {[%emt 0:00:04][%cal Od4d5]} Bg7 {[%emt 0:00:12] Against d5} 14. Nfd2 {[%emt 0:00:24]} (14. d5 $16 exd5 15. Re1+ Kf8 16. Ne3) 14... O-O {[%emt 0:00:28]} (14... Qc7 $11 {was preferrable.}) 15. a4 {[%emt 0:00:30]} Qd7 {[%emt 0:00:56]} 16. Qb3 {[%emt 0:00:29]} Kh8 {[%emt 0:00:20]} 17. Rfd1 {[%emt 0:00:10]} d5 {[%emt 0:00:18]} 18. Ne3 {[%emt 0:00:13]} f5 {[%emt 0:00:09]} 19. Nf3 {[%emt 0:00:35]} g4 {[%emt 0:00:44]} 20. Nh4 {[%emt 0:00:38] Ng6+ is the strong threat.} Ne7 {[%emt 0:00:03] Against Ng6+} 21. a5 {[%emt 0:00:07]} bxa5 {[%emt 0:00:16]} (21... Qc7 $11) 22. Rxa5 $16 {[%emt 0:00:03]} Bf6 {[%emt 0:00:13]} 23. Rda1 {[%emt 0:00:21] White has more active pieces.} Bc6 {[%emt 0:00:49]} 24. Qa3 {[%emt 0:00:18]} (24. Qd1 $142) 24... Bxh4 {[%emt 0:00:02]} (24... Bb7 $16) 25. gxh4 $18 {[%emt 0:00:01]} Rfb8 {[%emt 0:01:32]} (25... Bb7 {might work better.} 26. Bb5 (26. Rxa7 Rxa7 27. Qxa7 Ra8 $11) 26... Qc7) 26. Rxa7 $2 {[%emt 0:00:48]} ({White should try} 26. b4 $18) 26... Rxa7 $11 {[%emt 0:00:09]} 27. Qxa7 {[%emt 0:00:01]} Qd6 {[%emt 0:00:11]} (27... Ra8 $11 28. Qxa8+ Bxa8 29. Rxa8+ Kg7) 28. Qa3 {[%emt 0:01:58]} (28. Nd1 $142) 28... Qxa3 $16 {[%emt 0:00:07]} 29. bxa3 {[%emt 0:00:07][%cal Bb2a3,Ba3a4][%mdl 32]} Rb3 {[%emt 0:00:02] [#]} (29... Ra8 $16 {was necessary.}) 30. Nd1 $1 $18 {[%emt 0:00:01]} Bb5 $2 {[%emt 0:00:19]} (30... Kg8 $16 31. a4 Kf7) 31. Bxb5 $2 {[%emt 0:00:08]} (31. Bc2 $18 {is the precise move to win.}) 31... Rxb5 {[%emt 0:00:02][%mdl 4096] Endgame KRN-KRN} 32. a4 {[%emt 0:00:01]} Ra5 {[%emt 0:00:04]} (32... Rb7 $16) 33. Nb2 {[%emt 0:00:09]} Nc8 {[%emt 0:00:40]} (33... Ng6 {is a better defense.} 34. g3 Kg7) 34. Nd3 {[%emt 0:00:16]} Kg7 {[%emt 0:00:27]} 35. Nc5 {[%emt 0:00:03]} Kf6 {[%emt 0:00:06]} 36. Rb1 {[%emt 0:00:02] Inhibits Nb6.} ({Much less strong is} 36. Re1 $6 Kf7 37. Nxe6 Nd6 38. Nd8+ Kf8 $18) 36... Nd6 {[%emt 0:00:09]} 37. Rb6 {[%emt 0:00:16]} Ne4 {[%emt 0:00:30]} 38. Nxe6 {[%emt 0:01:08]} (38. Rxe6+ $18 {and the rest is easy.} Kf7 39. Rc6 (39. Rxh6 Nxc5 40. dxc5 Rxc5 $16)) 38... Nxc3 $16 {[%emt 0:00:02][%cal Of6e7]} 39. Nc5+ {[%emt 0:00:29]} Kg7 {[%emt 0:00:09]} 40. Rb7+ {[%emt 0:00:15]} Kg6 {[%emt 0:00:06]} 41. Rb6+ {[%emt 0:00:32]} Kg7 $1 {[%emt 0:00:04]} 42. Rb7+ {[%emt 0:00:01]} (42. Rb2 $16) 42... Kf6 {[%emt 0:00:03]} (42... Kg6 $1 $11) 43. Rb6+ {[%emt 0:00:02]} ({Better is} 43. Kh2 $16) 43... Ke7 {[%emt 0:00:15]} (43... Kg7 $1 $11) 44. Rb7+ {[%emt 0:00:18]} (44. Rb2 $16) 44... Ke8 {[%emt 0:00:54]} (44... Kf6 $1 $11 {remains equal.}) 45. Rb8+ {[%emt 0:00:03]} Ke7 {[%emt 0:00:14]} 46. Rb7+ {[%emt 0:00:01]} (46. Kh2 $16) 46... Ke8 $2 {[%emt 0:00:36] [#]} (46... Kf6 $11 {and Black stays safe.}) 47. Rb8+ $2 {[%emt 0:00:02] Black defended with fortune.   Weighted Error Value: White=0.58/Black=0.61} (47. Rb2 $1 $18) 1/2-1/2

[Event "Romanian Rapid Open 2022"]
[Site "Sebes"]
[Date "2022.12.02"]
[Round "5.10"]
[White "Ciolacu, Alessia-Mihaela"]
[Black "Stoleriu, George"]
[Result "0-1"]
[ECO "E90"]
[WhiteElo "2097"]
[BlackElo "2389"]
[Annotator "TA"]
[PlyCount "90"]
[EventDate "2022.12.02"]
[EventType "rapid"]
[EventCountry "ROU"]
[SourceTitle "playchess.com"]
[Source "ChessBase"]
[SourceQuality "1"]
[TimeControl "600+5"]

{[%evp 17,90,28,31,49,45,7,52,62,81,89,76,89,116,85,113,103,131,127,152,93,177,51,193,173,172,66,125,24,26,-28,-33,-36,-20,-37,0,0,33,0,0,0,0,-68,-31,-52,0,-31,-45,-36,-39,-984,-534,-1133,-1164,-700,-482,-922,-462,-401,-189,-212,-202,-327,-211,-189,-208,-376,-390,-926,-952,-797,-629,-1750,-1747,-1516,-1200]} 1. Nf3 {[%emt 0:00:04]} Nf6 {[%emt 0:00:01]} 2. c4 {[%emt 0:00:01]} g6 {[%emt 0:00:01]} 3. Nc3 {[%emt 0:00:04]} Bg7 {[%emt 0:00:01]} 4. d4 {[%emt 0:00:03]} O-O {[%emt 0:00:03]} 5. e4 {[%emt 0:00:16]} d6 {[%emt 0:00:01]} 6. h3 {[%emt 0:00:02]} Na6 {[%emt 0:01:40]} 7. Bd3 {[%emt 0:01:22]} e5 {[%emt 0:00:14]} 8. d5 {[%emt 0:00:02]} Nc5 {[%emt 0:00:02]} 9. Bc2 {[%emt 0:00:05]} a5 {[%emt 0:08:47]} 10. Be3 {[%emt 0:08:56] E90: King's Indian: Classical: Early deviations and 6 h3.} Nh5 {[%emt 0:00:00]} 11. g3 {[%emt 0:00:00]} f5 {[%emt 0:00:00]} 12. exf5 {[%emt 0:00:00] White is slightly better.} (12. Bxc5 {simplifies} dxc5 13. Nd2 Nf6 14. Qe2) 12... gxf5 {[%emt 0:00:00]} 13. Nh4 {[%emt 0:00:00] [#]} Nf4 $146 {[%emt 0:00:00][%cal Oa5a4]} ({Predecessor:} 13... Qe8 14. g4 fxg4 15. hxg4 Nf4 16. Nf5 Ng2+ 17. Kd2 Nxe3 18. fxe3 e4 19. Rh5 Bxf5 20. gxf5 Qe5 21. Qg4 Kh8 22. Rah1 Kg8 23. Rxh7 Rxf5 24. Rh8+ Kf7 25. Rxa8 {1-0 (25) Bohne,L (1975)-Mayeres,H (1851) Neustadt an der Weinstrasse 2016}) 14. Qd2 {[%emt 0:00:00] Prevents a4.} Ng6 {[%emt 0:00:00] [#]} 15. Nxg6 {[%emt 0:00:00]} hxg6 {[%emt 0:00:00]} 16. h4 {[%emt 0:00:00]} Bf6 {[%emt 0:00:00]} 17. O-O-O {[%emt 0:00:00]} a4 {[%emt 0:00:00]} 18. a3 {[%emt 0:00:00]} (18. h5 $142) 18... Bd7 {[%emt 0:00:00]} (18... Nb3+ $16 19. Bxb3 axb3) 19. Kb1 {[%emt 0:00:00]} (19. h5 $18) 19... Rb8 {[%emt 0:00:00]} (19... Nb3 $14 20. Bxb3 axb3) 20. h5 {[%emt 0:00:00]} g5 {[%emt 0:00:00]} 21. h6 {[%emt 0:00:00]} (21. Bxc5 $18 dxc5 22. d6 (22. Nxa4 Bxa4 23. Bxa4 e4 $16) (22. Bxa4 Bxa4 23. Nxa4 Qd6 $16)) 21... Kh8 {[%emt 0:00:00]} ({Black should play} 21... Nb3 $14 22. Qd3 e4) 22. g4 {[%emt 0:00:01]} (22. Bxc5 $16 dxc5 23. f3 (23. Nxa4 b5 $14) (23. Bxa4 e4 $16)) 22... Nb3 $11 {[%emt 0:00:00]} 23. Bxb3 {[%emt 0:00:34]} (23. Qe2 $142) 23... axb3 {[%emt 0:00:00]} 24. gxf5 {[%emt 0:00:11]} Bxf5+ {[%emt 0:00:00]} 25. Ka1 {[%emt 0:00:03]} Rg8 {[%emt 0:00:00]} 26. f3 {[%emt 0:00:03]} Qd7 {[%emt 0:00:00]} 27. Ne4 {[%emt 0:00:03]} Bxe4 {[%emt 0:00:01]} 28. fxe4 {[%emt 0:00:01]} Rbf8 {[%emt 0:00:08]} 29. Rdf1 {[%emt 0:00:05]} ({Better is} 29. h7 $11 Rg6 30. Qg2) 29... g4 $15 {[%emt 0:00:27][%cal Bg5g4,Bg4g3,Bg3g2][%mdl 32]} 30. Rf5 {[%emt 0:00:05]} Be7 {[%emt 0:00:02]} (30... Qh7 $15) 31. Rhf1 {[%emt 0:00:15][%cal Oh6h7] [#] h7! is the strong threat.} (31. h7 $5 Rg6 $8 32. Qd3 $15) 31... Rxf5 {[%emt 0:00:11]} 32. Rxf5 {[%emt 0:00:03]} g3 {[%emt 0:00:11] Hoping for ...Rf8.} 33. Rf7 {[%emt 0:00:14][%mdl 8192]} (33. Qd3 $15) 33... Qe8 {[%emt 0:00:10]} 34. Rf5 {[%emt 0:00:06]} g2 {[%emt 0:00:07]} 35. Bg1 {[%emt 0:00:01]} Qg6 {[%emt 0:00:01]} 36. Qe3 {[%emt 0:00:09]} (36. Qd1 $142 Qg3 37. Rf3) 36... Qg4 {[%emt 0:00:32] ( -> ...Qd1+)} 37. Qxb3 {[%emt 0:00:01]} Rf8 {[%emt 0:00:21] Prevents Rf7.} (37... Qxe4 $142 38. Rf7 Rf8 39. Rxf8+ Bxf8) 38. Rxf8+ (38. Qxb7 Qd1+ 39. Ka2 Qxg1 40. Rxf8+ Bxf8 41. Qxc7 Qc1 $19) 38... Bxf8 $19 {[%cal Be7f8,Bf8h6,Bh6e3][%mdl 4128] Endgame KQB-KQB} 39. Qe3 {[%emt 0:00:12]} (39. Qa4 {was called for.}) 39... Kh7 {[%emt 0:00:07]} 40. Ka2 {[%emt 0:00:06]} Bxh6 {[%emt 0:00:01]} 41. Qf2 {[%emt 0:00:01]} (41. Qd3 {was the only defense.}) 41... Kg6 {[%emt 0:00:07]} (41... Qxe4 $2 {loses.} 42. Qf7+ Bg7 43. Qxc7 $19) 42. Bh2 $2 {[%emt 0:00:09]} (42. Qc2 Qf3 43. c5) 42... Qxe4 {[%emt 0:00:03] aiming for ...Bf4. Black is clearly winning.} 43. Qg3+ {[%emt 0:00:01]} Kh7 {[%emt 0:00:02]} 44. Kb3 {[%emt 0:00:06]} Qe3+ {[%emt 0:00:02]} 45. Qxe3 {[%emt 0:00:15]} Bxe3 {[%emt 0:00:00] Black used his chance.   Weighted Error Value: White=0.96/Black=0.68} 0-1

[Event "Romanian Rapid Open 2022"]
[Site "Sebes"]
[Date "2022.12.02"]
[Round "5.11"]
[White "Secheres, Adrian-Simion"]
[Black "Dragomirescu, Calin"]
[Result "1/2-1/2"]
[ECO "E73"]
[WhiteElo "2365"]
[BlackElo "1971"]
[Annotator "TA"]
[PlyCount "55"]
[EventDate "2022.12.02"]
[EventType "rapid"]
[EventCountry "ROU"]
[SourceTitle "playchess.com"]
[Source "ChessBase"]
[SourceQuality "1"]
[TimeControl "600+5"]

{[%evp 14,55,10,31,16,26,9,0,26,28,36,31,39,13,18,44,28,6,17,0,49,-603,0,0,0,0,0,0,0,0,0,-19,0,-95,-39,-41,-47,-84,-79,-78,-80,-91,-91,-91]} 1. d4 {[%emt 0:00:03]} Nf6 {[%emt 0:00:01]} 2. c4 {[%emt 0:00:03]} g6 {[%emt 0:00:02]} 3. Nc3 {[%emt 0:00:03]} Bg7 {[%emt 0:00:00]} 4. e4 {[%emt 0:00:06]} d6 {[%emt 0:00:01]} 5. Be2 {[%emt 0:00:05]} O-O {[%emt 0:00:03]} 6. h4 {[%emt 0:00:10][%cal Bh2h4,Bh4h5][%mdl 32]} c5 {[%emt 0:00:14] The main line 6...c5 scores better than 6...h5.} 7. d5 {[%emt 0:00:02]} e6 {[%emt 0:00:06]} 8. h5 {[%emt 0:00:06]} exd5 {[%emt 0:00:01] E73: King's Indian: Averbakh Variation without 6...c5.} 9. exd5 {[%emt 0:00:02]} Re8 {[%emt 0:00:11]} 10. Kf1 {[%emt 0:00:44]} b5 {[%emt 0:00:43] The position is equal.} 11. cxb5 {[%emt 0:00:16]} a6 {[%emt 0:00:04] [#]} 12. hxg6 $146 {[%emt 0:00:44]} ({Predecessor:} 12. a4 axb5 13. Bxb5 Ba6 14. hxg6 Bxb5+ 15. Nxb5 hxg6 16. Ra3 Na6 17. Bh6 Qa5 18. Ne2 {1-0 (37) Parkhov,Y (2470)-Costachi,M (2476) Chess.com INT 2022}) 12... hxg6 {[%emt 0:00:11]} 13. Bg5 {[%emt 0:00:07]} axb5 {[%emt 0:00:24]} 14. Bxb5 {[%emt 0:00:39]} Ba6 {[%emt 0:00:34]} 15. Bxa6 {[%emt 0:00:16]} Nxa6 {[%emt 0:00:02][%cal Bb8a6,Ba6b4,Bb4d3][%mdl 32]} 16. Qf3 {[%emt 0:00:01]} (16. Nge2 {simplifies} Qd7 17. Qd2 Ne4 18. Nxe4 Rxe4 19. Bh6) 16... Re5 {[%emt 0:00:38]} (16... Rb8 $11 {feels stronger.}) 17. Ne4 $2 {[%emt 0:01:05][%mdl 8192] [#]} Rxe4 $2 {[%emt 0:01:26]} ({Better is} 17... Nxe4 $1 $19 18. Qxe4 Qxg5) 18. Bxf6 $11 {[%emt 0:00:05][%mdl 64] Remove Defender} Qxf6 {[%emt 0:00:01]} 19. Qxe4 {[%emt 0:00:02]} Qxb2 {[%emt 0:00:03]} 20. Re1 {[%emt 0:00:07]} Nb4 {[%emt 0:00:29] Prevents a4.} (20... Bd4 21. Ne2 $16 (21. Qh4 Qb5+ 22. Ne2 Nb4 $14)) 21. g3 {[%emt 0:00:47]} ({Don't go for} 21. Qh4 $2 Nd3 22. Nf3 (22. Rd1 $2 Qc2 $19) 22... Nxe1 23. Nxe1 Re8 24. Qh7+ Kf8 $19) 21... Qxa2 $40 {[%emt 0:00:54][%mdl 128] Black attacks.} ({Don't do} 21... Nxa2 22. Kg2 $14 (22. Qh4 Qb3 $11)) 22. Rh4 {[%emt 0:01:56]} Qxd5 {[%emt 0:00:23]} 23. Qe2 {[%emt 0:00:58]} (23. Qxd5 $11 {keeps the balance.} Nxd5 24. Rd1) 23... Qd3 {[%emt 0:01:16]} (23... Bc3 $17 24. Rd1 Qc6) 24. Qxd3 {[%emt 0:00:23]} Nxd3 {[%emt 0:00:02]} 25. Rd1 {[%emt 0:00:02] [#]} c4 {[%emt 0:00:08] Black is better.} 26. Rxc4 {[%emt 0:00:58]} Nb2 {[%emt 0:00:06][%csl LRc4,LRd1]} 27. Rcd4 {[%emt 0:02:30]} Nxd1 28. Rxd1 {Weighted Error Value: White=0.46/Black=0.37} 1/2-1/2

[Event "Romanian Rapid Open 2022"]
[Site "Sebes"]
[Date "2022.12.02"]
[Round "5.12"]
[White "Cosma, Ioan"]
[Black "Dan, Cantemir-Dorian"]
[Result "1-0"]
[ECO "A43"]
[WhiteElo "2368"]
[BlackElo "2036"]
[Annotator "TA"]
[PlyCount "49"]
[EventDate "2022.12.02"]
[EventType "rapid"]
[EventCountry "ROU"]
[SourceTitle "playchess.com"]
[Source "ChessBase"]
[SourceQuality "1"]
[TimeControl "600+5"]

{[%evp 18,49,68,64,60,48,58,50,72,34,75,58,60,7,76,75,83,65,98,45,62,75,613,606,587,581,841,831,5252,5243,29989,29990,29990,29991]} 1. d4 {[%emt 0:00:02]} Nf6 {[%emt 0:00:08]} 2. Nf3 {[%emt 0:00:02]} c5 {[%emt 0:00:16]} 3. d5 {[%emt 0:00:04]} d6 {[%emt 0:00:31]} 4. Nc3 {[%emt 0:00:03]} g6 {[%emt 0:00:03]} 5. e4 {[%emt 0:00:05]} Bg7 {[%emt 0:00:03]} 6. Be2 {[%emt 0:00:07]} O-O {[%emt 0:00:03]} 7. O-O {[%emt 0:00:03]} Na6 {[%emt 0:00:37]} 8. Re1 {[%emt 0:00:05]} Nc7 {[%emt 0:00:17]} 9. a4 {[%emt 0:00:03]} Rb8 {[%emt 0:00:05]} 10. h3 {[%emt 0:00:11]} b6 {[%emt 0:00:19] A43: Schmid Benoni.} 11. Bf4 {[%emt 0:00:08]} a6 {[%emt 0:00:38]} 12. e5 {[%emt 0:00:31]} Nfe8 {[%emt 0:00:21] White is slightly better.} 13. Bf1 {[%emt 0:00:37] [#]} b5 $146 {[%emt 0:00:17]} ({Predecessor:} 13... Bb7 14. Qd2 Ba8 15. exd6 exd6 16. Bg5 Nf6 17. Qf4 b5 18. axb5 axb5 19. Rad1 b4 {1-0 (29) Tomazini,Z (2277)-Cingoz,O (1918) Kocaeli 2013}) 14. axb5 {[%emt 0:00:30]} axb5 {[%emt 0:00:01]} 15. exd6 {[%emt 0:00:49]} ({Better is} 15. Ra7 $14) 15... Nxd6 {[%emt 0:01:25] [#]} (15... exd6 $11 16. Bg5 Nf6) 16. Ne5 $1 $36 {[%emt 0:00:08][%mdl 2048] White is in control.} Bd7 {[%emt 0:00:14]} 17. Qd2 {[%emt 0:00:39] White is much more active.} b4 {[%emt 0:00:29] aiming for ...Bxe5.} 18. Na4 {[%emt 0:00:05]} (18. Ne4 $16) 18... Bxa4 {[%emt 0:01:59]} 19. Rxa4 {[%emt 0:00:03] Hoping for Nc6.} e6 $2 {[%emt 0:00:20][%mdl 8192] This costs Black the game.} (19... Bxe5 $16 20. Rxe5 (20. Bxe5 Ra8 $14) 20... Ra8 21. Rxa8 Nxa8) 20. Nc6 $18 {[%emt 0:00:41][%csl LRb8,LRd8]} Qd7 {[%emt 0:01:12]} 21. Nxb8 {[%emt 0:00:27]} Rxb8 {[%emt 0:00:17]} 22. dxe6 {[%emt 0:00:35][%cal Bd5e6,Be6f7][%mdl 32]} Qxa4 {[%emt 0:00:31]} 23. Qxd6 {[%emt 0:00:06] [#] Intending exf7+ and mate.} Rc8 {[%emt 0:00:30]} 24. exf7+ {[%emt 0:00:15]} Kh8 {[%emt 0:00:27]} 25. Qxc7 {[%emt 0:00:12] Weighted Error Value: White=0.15 (very precise) /Black=1.06} 1-0

[Event "Romanian Rapid Open 2022"]
[Site "Sebes"]
[Date "2022.12.02"]
[Round "5.13"]
[White "Zubcu, Vlad-George"]
[Black "Talu, Mircea"]
[Result "1/2-1/2"]
[ECO "D00"]
[WhiteElo "2135"]
[BlackElo "2327"]
[Annotator "TA"]
[PlyCount "115"]
[EventDate "2022.12.02"]
[EventType "rapid"]
[EventCountry "ROU"]
[SourceTitle "playchess.com"]
[Source "ChessBase"]
[SourceQuality "1"]
[TimeControl "600+5"]

{[%evp 9,115,0,0,-26,-28,-33,-22,-8,-8,0,-2,-10,0,-81,-83,-93,-91,-88,-87,-98,-108,-106,-74,-75,-35,-39,-7,-5,-5,-5,0,0,0,-4,-8,-16,-13,-26,7,-82,-82,-84,-75,-95,-98,-90,-66,-66,-66,-66,-66,-66,-66,-84,-24,-90,-20,-72,0,0,0,0,0,0,0,-8,0,-66,-68,-70,0,-15,0,-11,0,0,0,0,0,0,0,0,0,0,0,0,0,0,0,0,0,0,0,0,0,0,0,0,0,0,0,0,0,0,0,0,0,0]} 1. d4 {[%emt 0:00:03]} Nf6 {[%emt 0:00:15]} 2. Bg5 {[%emt 0:00:02]} d5 {[%emt 0:00:22]} 3. Bxf6 {[%emt 0:00:03]} gxf6 {[%emt 0:00:05]} 4. e3 {[%emt 0:00:07][%cal Be2e3,Be3d4][%mdl 32]} c5 {[%emt 0:00:13]} 5. c4 {[%emt 0:00:26]} cxd4 {[%emt 0:00:52]} 6. exd4 {[%emt 0:00:18] D00: 1 d4 d5: Unusual lines.} (6. Qxd4 $5 {[%cal Rc4d5]} Nc6 7. Qxd5 $11) 6... Nc6 {[%emt 0:00:15]} 7. Nf3 {[%emt 0:01:32]} Bg4 {[%emt 0:02:34]} (7... e5 $5 {[%cal Rd8a5]}) 8. Nc3 {[%emt 0:00:53][%cal Bb1c3,Bc3e2,Be2g3,Bg3h5,Bh5f6,Bf6d5][%mdl 32]} dxc4 {[%emt 0:00:24] Strongly threatening ...Bxf3.} 9. Bxc4 {[%emt 0:00:02]} Bxf3 {[%emt 0:00:11]} 10. Qxf3 {[%emt 0:00:08] Black must now prevent d5.} Qxd4 {[%emt 0:00:12] [#]} 11. Bb3 $146 {[%emt 0:01:51] [#]} (11. Bb5 $11 Qe5+ 12. Kf1) ({Predecessor:} 11. Bb5 Qe5+ 12. Kf1 Rc8 13. Re1 Qc5 14. Qxf6 Rg8 15. Qf3 Bg7 16. Qg4 Rd8 17. a4 {½-½ (49) Firouzja,A (2728)-Alekseenko,K (2696) Chess.com INT 2020}) 11... Qe5+ $1 $17 {[%emt 0:00:32]} 12. Ne2 {[%emt 0:00:08]} Bg7 {[%emt 0:01:59]} ({Reject} 12... Qxb2 13. O-O Bh6 14. Rab1 $14) 13. O-O {[%emt 0:00:09]} O-O {[%emt 0:00:20]} ({Much worse is} 13... Qxb2 14. Rab1 Qd2 15. Ng3 $11) 14. Rfe1 {[%emt 0:00:20]} e6 {[%emt 0:00:40]} 15. Ng3 {[%emt 0:01:14]} Qa5 {[%emt 0:01:06]} 16. Nh5 {[%emt 0:01:25]} Nd4 {[%emt 0:00:03]} (16... Qg5 {simplifies} 17. Nxg7 Kxg7 18. Ba4 Rac8) 17. Nxf6+ {[%emt 0:00:51]} Kh8 {[%emt 0:00:03]} 18. Qf4 {[%emt 0:00:04]} Nxb3 {[%emt 0:00:48]} 19. axb3 {[%emt 0:00:01]} Qf5 {[%emt 0:00:03]} 20. Qxf5 {[%emt 0:00:16]} exf5 {[%emt 0:00:02]} 21. Nd5 {[%emt 0:00:32]} Bxb2 {[%emt 0:00:04]} 22. Ra2 {[%emt 0:00:10]} Rfe8 {[%emt 0:00:13][%cal Re8e1] [#]} 23. Rd1 {[%emt 0:00:37]} Rad8 {[%emt 0:00:23][%cal Od8d5]} 24. g3 {[%emt 0:00:01]} (24. f4 $11 {keeps the balance.} Bf6 25. Rxa7) 24... Re5 $1 $36 {[%emt 0:00:07][%mdl 2048] White is under strong pressure.} 25. Rxb2 {[%emt 0:00:21]} Rexd5 {[%emt 0:00:02]} 26. Rxd5 {[%emt 0:00:01]} Rxd5 {[%emt 0:00:01][%mdl 4096] Endgame KR-KR} 27. Rc2 {[%emt 0:00:09]} Rd3 {[%emt 0:00:14]} 28. b4 {[%emt 0:00:10]} Rb3 {[%emt 0:00:03]} 29. Rc4 {[%emt 0:00:00]} Kg7 {[%emt 0:00:03]} 30. Kg2 {[%emt 0:00:03]} Kg6 {[%emt 0:00:13]} 31. h4 {[%emt 0:00:08]} b5 {[%emt 0:00:04]} (31... Kf6 $17) 32. Rd4 {[%emt 0:00:02]} (32. Rc7 $11 {remains equal.}) 32... Kf6 {[%emt 0:00:07]} (32... h5 $17) 33. Rd7 {[%emt 0:00:26]} (33. Rd6+ $11 Kg7 34. Ra6) 33... Ra3 {[%emt 0:00:02]} ({Black should play} 33... Rxb4 $17 {Threatens to win with ...a5.} 34. Rxa7 Rc4) 34. Rd5 $11 {[%emt 0:00:06]} a6 {[%emt 0:00:01]} 35. Rd6+ $1 {[%emt 0:00:05]} Ke7 {[%emt 0:00:07]} 36. Rh6 {[%emt 0:00:01]} Ra4 {[%emt 0:00:02]} 37. Kf3 {[%emt 0:00:03]} Kf8 {[%emt 0:00:15]} 38. Ke3 {[%emt 0:00:03]} ({Better is} 38. h5 $11) 38... Kg7 $15 {[%emt 0:00:06]} 39. Rb6 {[%emt 0:00:01]} f6 {[%emt 0:00:04]} (39... Rxb4 $15 40. Rxa6 Re4+ 41. Kd3 Ra4) 40. h5 {[%emt 0:00:03] The position is equal.} Kh6 {[%emt 0:00:04]} 41. Rxf6+ {[%emt 0:00:02]} Kxh5 {[%emt 0:00:02]} 42. Rxf5+ {[%emt 0:00:03]} Kg6 {[%emt 0:00:06]} 43. Rc5 {[%emt 0:00:01]} h5 {[%emt 0:00:08]} 44. Kf3 {[%emt 0:00:06]} Kh6 {[%emt 0:00:08]} 45. Kg2 {[%emt 0:00:04]} Kg6 {[%emt 0:00:01]} (45... Rxb4 $5 46. Rc6+ $8 Kg5 $11) 46. Kh3 {[%emt 0:00:03]} Kh6 {[%emt 0:00:04]} (46... Rxb4 $5 47. Rc6+ $8 Kf5 48. Rxa6 Rb2 $11) 47. f4 {[%emt 0:00:03]} Kg6 {[%emt 0:00:03]} 48. Kh4 {[%emt 0:00:01] aiming for f5+.} Rxb4 {[%emt 0:00:06]} 49. Rc6+ {[%emt 0:00:01]} Kf5 {[%emt 0:00:02]} 50. Rxa6 {[%emt 0:00:02][%cal Oa6c6]} Rb1 {[%emt 0:00:02][%cal Rb1h1]} (50... Rb2 $5 51. Kh3 $8 Rb1 $11) 51. Kh3 $1 {[%emt 0:00:17]} b4 {[%emt 0:00:03]} 52. Ra5+ {[%emt 0:00:02]} Ke4 {[%emt 0:00:26]} 53. Rb5 {[%emt 0:00:29]} ({Of course not} 53. Re5+ Kd4 54. Rb5 b3 $17) 53... Kf3 {[%emt 0:00:00][%cal Rb1h1]} 54. Kh4 {[%emt 0:00:04]} b3 {[%emt 0:00:00]} 55. f5 {[%emt 0:00:05]} b2 {[%emt 0:00:00] ( -> ...Rh1+)} 56. Kxh5 {[%emt 0:00:11]} Kxg3 {[%emt 0:00:02]} 57. f6 {[%emt 0:00:05] Hoping for f7.} Rf1 {[%emt 0:00:13] Against f7} 58. Rxb2 {[%emt 0:00:03] Weighted Error Value: White=0.16 (very precise) /Black=0.11 (very precise)} 1/2-1/2